[Event "Titled Tuesday Blitz December 27 Early 2022"]
[White "Steinberg, Nitzan"]
[Black "Pinheiro, Iung Alicio de O."]
[WhiteFideId "2801795"]
[BlackFideId "2104350"]
[WhiteElo "2546"]
[BlackElo "2306"]
[Result "1/2-1/2"]
[Round "02"]
[TimeControl "180+2"]
[Date "2022.12.27"]
[WhiteClock "0:00:08"]
[BlackClock "0:00:13"]

1. d4 {[%clk 0:03:00]}  Nf6 {[%clk 0:02:58]} 2. Nf3 {[%clk 0:03:00]}  g6 {[%clk 0:02:58]} 3. g3 {[%clk 0:03:00]}  Bg7 {[%clk 0:02:57]} 4. Bg2 {[%clk 0:03:00]}  O-O {[%clk 0:02:57]} 5. O-O {[%clk 0:03:01]}  d6 {[%clk 0:02:57]} 6. Nc3 {[%clk 0:02:58]}  d5 {[%clk 0:02:56]} 7. a4 {[%clk 0:02:54]}  a5 {[%clk 0:02:55]} 8. Bf4 {[%clk 0:02:46]}  c6 {[%clk 0:02:50]} 9. Qc1 {[%clk 0:02:35]}  Bf5 {[%clk 0:02:22]} 10. Re1 {[%clk 0:02:24]}  Na6 {[%clk 0:02:19]} 11. Nh4 {[%clk 0:02:23]}  Bg4 {[%clk 0:02:14]} 12. Bh6 {[%clk 0:02:18]}  Nb4 {[%clk 0:02:12]} 13. Bxg7 {[%clk 0:02:14]}  Kxg7 {[%clk 0:02:11]} 14. Nd1 {[%clk 0:02:09]}  Qd7 {[%clk 0:02:08]} 15. c3 {[%clk 0:01:59]}  Na6 {[%clk 0:02:07]} 16. Nf3 {[%clk 0:01:56]}  Bxf3 {[%clk 0:02:01]} 17. exf3 {[%clk 0:01:51]}  c5 {[%clk 0:01:54]} 18. Qd2 {[%clk 0:01:41]}  Rac8 {[%clk 0:01:39]} 19. Ne3 {[%clk 0:01:21]}  Rfd8 {[%clk 0:01:26]} 20. h4 {[%clk 0:01:16]}  cxd4 {[%clk 0:01:19]} 21. Qxd4 {[%clk 0:01:16]}  Nc5 {[%clk 0:01:19]} 22. Ra3 {[%clk 0:01:16]}  Ne6 {[%clk 0:01:16]} 23. Qb6 {[%clk 0:01:03]}  Qc7 {[%clk 0:01:01]} 24. Qxc7 {[%clk 0:00:40]}  Rxc7 {[%clk 0:01:00]} 25. Nc2 {[%clk 0:00:34]}  d4 {[%clk 0:00:53]} 26. Nxd4 {[%clk 0:00:34]}  Nxd4 {[%clk 0:00:54]} 27. cxd4 {[%clk 0:00:35]}  Rxd4 {[%clk 0:00:54]} 28. f4 {[%clk 0:00:35]}  Rb4 {[%clk 0:00:51]} 29. Rc3 {[%clk 0:00:22]}  Rd7 {[%clk 0:00:47]} 30. b3 {[%clk 0:00:21]}  e6 {[%clk 0:00:40]} 31. Bf3 {[%clk 0:00:19]}  h5 {[%clk 0:00:39]} 32. Kg2 {[%clk 0:00:19]}  Rd6 {[%clk 0:00:22]} 33. Re5 {[%clk 0:00:19]}  Rdb6 {[%clk 0:00:21]} 34. Rxa5 {[%clk 0:00:18]}  Rxb3 {[%clk 0:00:22]} 35. Rxb3 {[%clk 0:00:11]}  Rxb3 {[%clk 0:00:23]} 36. Ra7 {[%clk 0:00:08]}  b6 {[%clk 0:00:22]} 37. Rb7 {[%clk 0:00:08]}  Rb4 {[%clk 0:00:21]} 38. Bc6 {[%clk 0:00:09]}  Kf8 {[%clk 0:00:17]} 39. Bb5 {[%clk 0:00:09]}  Nd5 {[%clk 0:00:18]} 40. Kf3 {[%clk 0:00:09]}  Rb3+ {[%clk 0:00:17]} 41. Kg2 {[%clk 0:00:08]}  Rb4 {[%clk 0:00:15]} 42. Bc6 {[%clk 0:00:08]}  Nc3 {[%clk 0:00:15]} 43. Kf3 {[%clk 0:00:05]}  Rb3 {[%clk 0:00:11]} 44. Kg2 {[%clk 0:00:05]}  Rb4 {[%clk 0:00:11]} 45. Kf3 {[%clk 0:00:05]}  Nxa4 {[%clk 0:00:08]} 46. Bxa4 {[%clk 0:00:04]}  Rxa4 {[%clk 0:00:09]} 47. Rxb6 {[%clk 0:00:05]}  Kg7 {[%clk 0:00:10]} 48. Kg2 {[%clk 0:00:06]}  Ra3 {[%clk 0:00:10]} 49. Rb2 {[%clk 0:00:06]}  Rc3 {[%clk 0:00:10]} 50. Re2 {[%clk 0:00:06]}  Ra3 {[%clk 0:00:10]} 51. Re3 {[%clk 0:00:07]}  Ra4 {[%clk 0:00:11]} 52. Kf3 {[%clk 0:00:07]}  Kf6 {[%clk 0:00:11]} 53. Re4 {[%clk 0:00:07]}  Ra3+ {[%clk 0:00:11]} 54. Re3 {[%clk 0:00:08]}  Ra2 {[%clk 0:00:12]} 55. Re2 {[%clk 0:00:08]}  Ra5 {[%clk 0:00:13]} 56. Re3 {[%clk 0:00:08]}  Kf5 {[%clk 0:00:12]} 57. Rb3 {[%clk 0:00:08]}  f6 {[%clk 0:00:12]} 58. Re3 {[%clk 0:00:08]}  Ra4 {[%clk 0:00:11]} 59. Rd3 {[%clk 0:00:08]}  Ra5 {[%clk 0:00:11]} 60. Rc3 {[%clk 0:00:08]}  Rd5 {[%clk 0:00:10]} 61. Re3 {[%clk 0:00:08]}  Rc5 {[%clk 0:00:09]} 62. Rd3 {[%clk 0:00:08]}  Ra5 {[%clk 0:00:09]} 63. Rc3 {[%clk 0:00:09]}  Rd5 {[%clk 0:00:09]} 64. Rb3 {[%clk 0:00:09]}  e5 {[%clk 0:00:09]} 65. fxe5 {[%clk 0:00:09]}  Rxe5 {[%clk 0:00:10]} 66. Rd3 {[%clk 0:00:09]}  g5 {[%clk 0:00:10]} 67. Rd8 {[%clk 0:00:09]}  gxh4 {[%clk 0:00:10]} 68. gxh4 {[%clk 0:00:09]}  Re4 {[%clk 0:00:09]} 69. Rd5+ {[%clk 0:00:09]}  Re5 {[%clk 0:00:09]} 70. Rd4 {[%clk 0:00:07]}  Ra5 {[%clk 0:00:09]} 71. Rf4+ {[%clk 0:00:07]}  Kg6 {[%clk 0:00:08]} 72. Re4 {[%clk 0:00:07]}  Ra3+ {[%clk 0:00:08]} 73. Kg2 {[%clk 0:00:07]}  Ra2 {[%clk 0:00:08]} 74. Rf4 {[%clk 0:00:07]}  Ra5 {[%clk 0:00:08]} 75. Re4 {[%clk 0:00:06]}  Rf5 {[%clk 0:00:08]} 76. Kg3 {[%clk 0:00:06]}  Ra5 {[%clk 0:00:09]} 77. Rf4 {[%clk 0:00:06]}  Ra3+ {[%clk 0:00:09]} 78. f3 {[%clk 0:00:07]}  Ra2 {[%clk 0:00:10]} 79. Rd4 {[%clk 0:00:06]}  Ra1 {[%clk 0:00:10]} 80. Rd8 {[%clk 0:00:06]}  Rg1+ {[%clk 0:00:11]} 81. Kf4 {[%clk 0:00:07]}  Ra1 {[%clk 0:00:12]} 82. Rg8+ {[%clk 0:00:06]}  Kf7 {[%clk 0:00:12]} 83. Rh8 {[%clk 0:00:06]}  Ra4+ {[%clk 0:00:12]} 84. Kg3 {[%clk 0:00:06]}  Kg6 {[%clk 0:00:12]} 85. Rg8+ {[%clk 0:00:07]}  Kf5 {[%clk 0:00:12]} 86. Rh8 {[%clk 0:00:07]}  Kg6 {[%clk 0:00:12]} 87. Rg8+ {[%clk 0:00:07]}  Kf5 {[%clk 0:00:13]} 88. Rh8 {[%clk 0:00:08]}  Kg6 {[%clk 0:00:13]} 1/2-1/2


[Site "https://www.chess.com"]

[Event "Titled Tuesday Blitz December 27 Early 2022"]
[White "Stork, Oliver"]
[Black "Dias, Joao Batista"]
[WhiteFideId "12955728"]
[BlackFideId "2108240"]
[WhiteElo "2342"]
[BlackElo "1796"]
[Result "1-0"]
[Round "02"]
[TimeControl "180+2"]
[Date "2022.12.27"]
[WhiteClock "0:00:50"]
[BlackClock "0:01:26"]

1. d4 {[%clk 0:03:00]}  d5 {[%clk 0:02:57]} 2. Nf3 {[%clk 0:03:00]}  Nf6 {[%clk 0:02:55]} 3. e3 {[%clk 0:03:00]}  e6 {[%clk 0:02:54]} 4. b3 {[%clk 0:03:00]}  Bd6 {[%clk 0:02:54]} 5. Bb2 {[%clk 0:03:01]}  O-O {[%clk 0:02:54]} 6. Bd3 {[%clk 0:03:01]}  Nbd7 {[%clk 0:02:52]} 7. O-O {[%clk 0:03:01]}  Re8 {[%clk 0:02:53]} 8. c4 {[%clk 0:03:00]}  c6 {[%clk 0:02:52]} 9. Qc2 {[%clk 0:03:00]}  Nf8 {[%clk 0:02:51]} 10. Nbd2 {[%clk 0:02:59]}  Ng6 {[%clk 0:02:49]} 11. Rfe1 {[%clk 0:02:56]}  Qc7 {[%clk 0:02:47]} 12. g3 {[%clk 0:02:55]}  e5 {[%clk 0:02:45]} 13. dxe5 {[%clk 0:02:48]}  Nxe5 {[%clk 0:02:45]} 14. cxd5 {[%clk 0:02:32]}  Nxd3 {[%clk 0:02:39]} 15. Qxd3 {[%clk 0:02:33]}  Nxd5 {[%clk 0:02:36]} 16. e4 {[%clk 0:02:33]}  Nb4 {[%clk 0:02:30]} 17. Qc3 {[%clk 0:02:33]}  f6 {[%clk 0:02:24]} 18. Nc4 {[%clk 0:02:25]}  Bf8 {[%clk 0:02:22]} 19. a3 {[%clk 0:02:19]}  Na6 {[%clk 0:02:21]} 20. b4 {[%clk 0:02:11]}  Be6 {[%clk 0:02:14]} 21. Nd4 {[%clk 0:01:53]}  Bf7 {[%clk 0:02:11]} 22. Nf5 {[%clk 0:01:52]}  Rad8 {[%clk 0:01:57]} 23. h4 {[%clk 0:01:31]}  Nb8 {[%clk 0:01:54]} 24. h5 {[%clk 0:01:31]}  h6 {[%clk 0:01:54]} 25. Nxh6+ {[%clk 0:01:28]}  gxh6 {[%clk 0:01:53]} 26. Qxf6 {[%clk 0:01:29]}  Bxc4 {[%clk 0:01:51]} 27. Qh8+ {[%clk 0:01:24]}  Kf7 {[%clk 0:01:50]} 28. Qh7+ {[%clk 0:01:23]}  Ke6 {[%clk 0:01:46]} 29. Qxc7 {[%clk 0:01:01]}  Rd7 {[%clk 0:01:33]} 30. Qe5+ {[%clk 0:01:00]}  Kf7 {[%clk 0:01:32]} 31. Qf6+ {[%clk 0:00:57]}  Kg8 {[%clk 0:01:30]} 32. Qh8+ {[%clk 0:00:57]}  Kf7 {[%clk 0:01:30]} 33. Qh7+ {[%clk 0:00:57]}  Ke6 {[%clk 0:01:30]} 34. Qg6+ {[%clk 0:00:50]}  Ke7 {[%clk 0:01:26]} 35. Qf6# {[%clk 0:00:50]} 1-0


[Site "https://www.chess.com"]

[Event "Titled Tuesday Blitz December 27 Early 2022"]
[White "Strahov, Andrej"]
[Black "Fajdetic, Hrvoje"]
[WhiteFideId "4165489"]
[BlackFideId "14501945"]
[WhiteElo "2398"]
[BlackElo "2151"]
[Result "0-1"]
[Round "02"]
[TimeControl "180+2"]
[Date "2022.12.27"]
[WhiteClock "0:01:13"]
[BlackClock "0:00:47"]

1. e4 {[%clk 0:02:52]}  e6 {[%clk 0:02:59]} 2. d4 {[%clk 0:02:52]}  d5 {[%clk 0:02:59]} 3. Nc3 {[%clk 0:02:53]}  dxe4 {[%clk 0:02:58]} 4. Nxe4 {[%clk 0:02:54]}  Nd7 {[%clk 0:02:58]} 5. g3 {[%clk 0:02:48]}  Ngf6 {[%clk 0:02:58]} 6. Nxf6+ {[%clk 0:02:46]}  Nxf6 {[%clk 0:02:58]} 7. Bg2 {[%clk 0:02:47]}  Bd6 {[%clk 0:02:56]} 8. Nf3 {[%clk 0:02:47]}  O-O {[%clk 0:02:53]} 9. O-O {[%clk 0:02:47]}  Rb8 {[%clk 0:02:52]} 10. c4 {[%clk 0:02:39]}  b6 {[%clk 0:02:51]} 11. Ne5 {[%clk 0:02:40]}  Bxe5 {[%clk 0:02:40]} 12. dxe5 {[%clk 0:02:40]}  Qxd1 {[%clk 0:02:41]} 13. Rxd1 {[%clk 0:02:40]}  Ng4 {[%clk 0:02:40]} 14. Bf4 {[%clk 0:02:36]}  Ba6 {[%clk 0:02:10]} 15. h3 {[%clk 0:02:32]}  Nh6 {[%clk 0:02:09]} 16. Bxh6 {[%clk 0:02:32]}  gxh6 {[%clk 0:02:09]} 17. Rd7 {[%clk 0:02:28]}  Bxc4 {[%clk 0:02:02]} 18. Rc1 {[%clk 0:02:22]}  Bxa2 {[%clk 0:01:58]} 19. Rcxc7 {[%clk 0:02:21]}  a5 {[%clk 0:01:52]} 20. Bb7 {[%clk 0:02:01]}  b5 {[%clk 0:01:20]} 21. f4 {[%clk 0:01:58]}  a4 {[%clk 0:01:17]} 22. Bc6 {[%clk 0:01:49]}  Bc4 {[%clk 0:00:57]} 23. Rb7 {[%clk 0:01:49]}  Rxb7 {[%clk 0:00:54]} 24. Rxb7 {[%clk 0:01:50]}  Rd8 {[%clk 0:00:48]} 25. Bxb5 {[%clk 0:01:41]}  Rd1+ {[%clk 0:00:47]} 26. Kf2 {[%clk 0:01:13]}  Rd2+ {[%clk 0:00:47]} 0-1


[Site "https://www.chess.com"]

[Event "Titled Tuesday Blitz December 27 Early 2022"]
[White "Talibov, Shiroghlan"]
[Black "Donskov, Anatoly"]
[WhiteFideId "13429078"]
[BlackFideId "24143413"]
[WhiteElo "2359"]
[BlackElo "2279"]
[Result "0-1"]
[Round "02"]
[TimeControl "180+2"]
[Date "2022.12.27"]
[WhiteClock "0:00:06"]
[BlackClock "0:00:06"]

1. d4 {[%clk 0:03:00]}  d5 {[%clk 0:02:58]} 2. Nf3 {[%clk 0:02:59]}  Nf6 {[%clk 0:02:57]} 3. Bf4 {[%clk 0:02:57]}  c5 {[%clk 0:02:57]} 4. e3 {[%clk 0:02:58]}  e6 {[%clk 0:02:57]} 5. Nbd2 {[%clk 0:02:56]}  Bd6 {[%clk 0:02:56]} 6. Bxd6 {[%clk 0:02:56]}  Qxd6 {[%clk 0:02:56]} 7. dxc5 {[%clk 0:02:55]}  Qxc5 {[%clk 0:02:56]} 8. c4 {[%clk 0:02:56]}  O-O {[%clk 0:02:53]} 9. Rc1 {[%clk 0:02:54]}  b6 {[%clk 0:02:37]} 10. Bd3 {[%clk 0:02:38]}  Bb7 {[%clk 0:02:33]} 11. O-O {[%clk 0:02:32]}  Nbd7 {[%clk 0:02:29]} 12. a3 {[%clk 0:02:30]}  dxc4 {[%clk 0:02:18]} 13. Rxc4 {[%clk 0:02:31]}  Qd5 {[%clk 0:02:08]} 14. Rd4 {[%clk 0:02:26]}  Qc6 {[%clk 0:01:57]} 15. Ne4 {[%clk 0:02:16]}  g6 {[%clk 0:01:21]} 16. Ne5 {[%clk 0:01:51]}  Nxe5 {[%clk 0:01:06]} 17. Nxf6+ {[%clk 0:01:50]}  Kg7 {[%clk 0:01:07]} 18. Be4 {[%clk 0:01:51]}  Qc7 {[%clk 0:01:07]} 19. Bxb7 {[%clk 0:01:31]}  Qxb7 {[%clk 0:01:08]} 20. f4 {[%clk 0:01:30]}  Nc6 {[%clk 0:00:44]} 21. Rd7 {[%clk 0:01:08]}  Qc8 {[%clk 0:00:41]} 22. Qd6 {[%clk 0:00:45]}  Kxf6 {[%clk 0:00:36]} 23. Rc7 {[%clk 0:00:45]}  Qd8 {[%clk 0:00:21]} 24. Qxc6 {[%clk 0:00:43]}  Kg7 {[%clk 0:00:14]} 25. g4 {[%clk 0:00:38]}  Rc8 {[%clk 0:00:13]} 26. Rxc8 {[%clk 0:00:24]}  Qxc8 {[%clk 0:00:14]} 27. Qe4 {[%clk 0:00:24]}  Qc5 {[%clk 0:00:13]} 28. f5 {[%clk 0:00:23]}  exf5 {[%clk 0:00:12]} 29. gxf5 {[%clk 0:00:24]}  Qd6 {[%clk 0:00:10]} 30. f6+ {[%clk 0:00:23]}  Kg8 {[%clk 0:00:10]} 31. Qh4 {[%clk 0:00:23]}  h5 {[%clk 0:00:09]} 32. Qg5 {[%clk 0:00:21]}  Kh7 {[%clk 0:00:09]} 33. Rf2 {[%clk 0:00:17]}  Re8 {[%clk 0:00:09]} 34. Rf3 {[%clk 0:00:12]}  Qd1+ {[%clk 0:00:08]} 35. Kg2 {[%clk 0:00:11]}  Qe2+ {[%clk 0:00:08]} 36. Kg3 {[%clk 0:00:11]}  Qxb2 {[%clk 0:00:06]} 37. Qd5 {[%clk 0:00:10]}  Qe5+ {[%clk 0:00:06]} 38. Qxe5 {[%clk 0:00:07]}  Rxe5 {[%clk 0:00:07]} 39. Kf2 {[%clk 0:00:08]}  Rf5 {[%clk 0:00:07]} 40. h4 {[%clk 0:00:05]}  Rxf3+ {[%clk 0:00:06]} 41. Kxf3 {[%clk 0:00:06]}  g5 {[%clk 0:00:06]} 42. hxg5 {[%clk 0:00:04]}  Kg6 {[%clk 0:00:07]} 43. Kf4 {[%clk 0:00:05]}  b5 {[%clk 0:00:06]} 44. e4 {[%clk 0:00:05]}  a5 {[%clk 0:00:06]} 45. e5 {[%clk 0:00:06]}  b4 {[%clk 0:00:05]} 46. axb4 {[%clk 0:00:05]}  axb4 {[%clk 0:00:06]} 47. e6 {[%clk 0:00:06]}  fxe6 {[%clk 0:00:06]} 48. Ke4 {[%clk 0:00:07]}  b3 {[%clk 0:00:06]} 49. Kd3 {[%clk 0:00:06]}  h4 {[%clk 0:00:06]} 0-1


[Site "https://www.chess.com"]

[Event "Titled Tuesday Blitz December 27 Early 2022"]
[White "Tatarinov, Dmitry"]
[Black "McBryde, Lamel"]
[WhiteFideId "24160067"]
[BlackFideId "2058596"]
[WhiteElo "2310"]
[BlackElo "1861"]
[Result "1-0"]
[Round "02"]
[TimeControl "180+2"]
[Date "2022.12.27"]
[WhiteClock "0:00:52"]
[BlackClock "0:00:04"]

1. e4 {[%clk 0:03:00]}  Nf6 {[%clk 0:02:59]} 2. e5 {[%clk 0:03:01]}  Nd5 {[%clk 0:02:59]} 3. c4 {[%clk 0:03:00]}  Nb6 {[%clk 0:03:00]} 4. d4 {[%clk 0:02:59]}  d6 {[%clk 0:02:59]} 5. exd6 {[%clk 0:03:00]}  cxd6 {[%clk 0:03:00]} 6. Nc3 {[%clk 0:02:58]}  g6 {[%clk 0:03:01]} 7. Be3 {[%clk 0:02:59]}  Bg7 {[%clk 0:03:01]} 8. Rc1 {[%clk 0:02:59]}  O-O {[%clk 0:03:02]} 9. b3 {[%clk 0:03:00]}  Bf5 {[%clk 0:03:02]} 10. d5 {[%clk 0:02:59]}  e5 {[%clk 0:03:00]} 11. Nf3 {[%clk 0:02:55]}  Bg4 {[%clk 0:02:53]} 12. Be2 {[%clk 0:02:54]}  Bxf3 {[%clk 0:02:50]} 13. Bxf3 {[%clk 0:02:53]}  f5 {[%clk 0:02:51]} 14. O-O {[%clk 0:02:53]}  N8d7 {[%clk 0:02:46]} 15. Be2 {[%clk 0:02:52]}  f4 {[%clk 0:02:37]} 16. Bd2 {[%clk 0:02:47]}  Nf6 {[%clk 0:02:25]} 17. Bd3 {[%clk 0:02:44]}  Nbd7 {[%clk 0:02:23]} 18. Ne4 {[%clk 0:02:44]}  Nxe4 {[%clk 0:02:23]} 19. Bxe4 {[%clk 0:02:45]}  Nc5 {[%clk 0:02:23]} 20. Qf3 {[%clk 0:02:41]}  g5 {[%clk 0:02:20]} 21. b4 {[%clk 0:02:37]}  g4 {[%clk 0:02:19]} 22. Qe2 {[%clk 0:02:34]}  Nxe4 {[%clk 0:02:18]} 23. Qxe4 {[%clk 0:02:34]}  Qh4 {[%clk 0:01:15]} 24. f3 {[%clk 0:02:02]}  h5 {[%clk 0:00:59]} 25. Be1 {[%clk 0:02:01]}  Qg5 {[%clk 0:00:58]} 26. Kh1 {[%clk 0:02:00]}  Rf6 {[%clk 0:00:53]} 27. c5 {[%clk 0:01:55]}  Bf8 {[%clk 0:00:44]} 28. c6 {[%clk 0:01:46]}  b6 {[%clk 0:00:42]} 29. Bf2 {[%clk 0:01:37]}  Rc8 {[%clk 0:00:39]} 30. b5 {[%clk 0:01:36]}  Rc7 {[%clk 0:00:39]} 31. a4 {[%clk 0:01:31]}  g3 {[%clk 0:00:20]} 32. Bg1 {[%clk 0:01:23]}  gxh2 {[%clk 0:00:20]} 33. Bxh2 {[%clk 0:01:21]}  Rg6 {[%clk 0:00:19]} 34. Rc2 {[%clk 0:01:22]}  Be7 {[%clk 0:00:16]} 35. a5 {[%clk 0:01:21]}  bxa5 {[%clk 0:00:13]} 36. Rb2 {[%clk 0:01:19]}  Bd8 {[%clk 0:00:14]} 37. Rff2 {[%clk 0:01:14]}  Rcg7 {[%clk 0:00:14]} 38. Rfe2 {[%clk 0:01:12]}  Bb6 {[%clk 0:00:13]} 39. Ra2 {[%clk 0:01:06]}  Qh4 {[%clk 0:00:11]} 40. Qf5 {[%clk 0:01:02]}  Rxg2 {[%clk 0:00:09]} 41. Qe6+ {[%clk 0:00:57]}  Kh8 {[%clk 0:00:09]} 42. Qc8+ {[%clk 0:00:56]}  Kh7 {[%clk 0:00:04]} 43. Qf5+ {[%clk 0:00:55]}  Kh8 {[%clk 0:00:05]} 44. Qf8+ {[%clk 0:00:55]}  Kh7 {[%clk 0:00:03]} 45. Qf5+ {[%clk 0:00:55]}  Kh8 {[%clk 0:00:03]} 46. Rxg2 {[%clk 0:00:50]}  Qe1+ {[%clk 0:00:03]} 47. Bg1 {[%clk 0:00:51]}  Qxg1+ {[%clk 0:00:03]} 48. Rxg1 {[%clk 0:00:51]}  Rxg1+ {[%clk 0:00:04]} 49. Kh2 {[%clk 0:00:52]} 1-0


[Site "https://www.chess.com"]

[Event "Titled Tuesday Blitz December 27 Early 2022"]
[White "Timofeev, Artyom"]
[Black "Potapova, Margarita"]
[WhiteFideId "4140419"]
[BlackFideId "14126869"]
[WhiteElo "2567"]
[BlackElo "2104"]
[Result "1-0"]
[Round "02"]
[TimeControl "180+2"]
[Date "2022.12.27"]
[WhiteClock "0:01:16"]
[BlackClock "0:00:49"]

1. d4 {[%clk 0:03:00]}  Nf6 {[%clk 0:02:59]} 2. Bf4 {[%clk 0:03:00]}  g6 {[%clk 0:02:58]} 3. Nc3 {[%clk 0:02:59]}  Bg7 {[%clk 0:02:58]} 4. e4 {[%clk 0:02:59]}  d5 {[%clk 0:02:58]} 5. e5 {[%clk 0:02:57]}  Ne4 {[%clk 0:02:58]} 6. Bd3 {[%clk 0:02:54]}  Nxc3 {[%clk 0:02:58]} 7. bxc3 {[%clk 0:02:54]}  c5 {[%clk 0:02:59]} 8. Qd2 {[%clk 0:02:51]}  h6 {[%clk 0:02:42]} 9. dxc5 {[%clk 0:02:42]}  Nc6 {[%clk 0:02:41]} 10. Bb5 {[%clk 0:02:38]}  g5 {[%clk 0:02:33]} 11. Bg3 {[%clk 0:02:37]}  O-O {[%clk 0:02:31]} 12. Nf3 {[%clk 0:02:34]}  g4 {[%clk 0:02:24]} 13. Bxc6 {[%clk 0:02:31]}  bxc6 {[%clk 0:02:08]} 14. Nd4 {[%clk 0:02:30]}  Qc7 {[%clk 0:02:02]} 15. O-O {[%clk 0:02:23]}  e6 {[%clk 0:01:51]} 16. Rae1 {[%clk 0:02:20]}  Ba6 {[%clk 0:01:51]} 17. f4 {[%clk 0:02:13]}  Bxf1 {[%clk 0:01:51]} 18. Rxf1 {[%clk 0:02:12]}  Rab8 {[%clk 0:01:51]} 19. f5 {[%clk 0:02:10]}  Bxe5 {[%clk 0:01:45]} 20. Qxh6 {[%clk 0:02:05]}  exf5 {[%clk 0:01:04]} 21. Qg5+ {[%clk 0:01:53]}  Kh8 {[%clk 0:01:02]} 22. Rxf5 {[%clk 0:01:39]}  Rb1+ {[%clk 0:00:53]} 23. Kf2 {[%clk 0:01:38]}  Bxg3+ {[%clk 0:00:53]} 24. hxg3 {[%clk 0:01:37]}  f6 {[%clk 0:00:54]} 25. Qh6+ {[%clk 0:01:29]}  Kg8 {[%clk 0:00:52]} 26. Qxf8+ {[%clk 0:01:26]}  Kxf8 {[%clk 0:00:52]} 27. Ne6+ {[%clk 0:01:27]}  Ke7 {[%clk 0:00:53]} 28. Nxc7 {[%clk 0:01:27]}  a5 {[%clk 0:00:50]} 29. Rf4 {[%clk 0:01:17]}  Rb7 {[%clk 0:00:49]} 30. Na6 {[%clk 0:01:16]}  Ra7 {[%clk 0:00:49]} 31. Nb8 {[%clk 0:01:16]} 1-0


[Site "https://www.chess.com"]

[Event "Titled Tuesday Blitz December 27 Early 2022"]
[White "Toncheva, Nadya"]
[Black "Sailer, Mike"]
[WhiteFideId "2924056"]
[BlackFideId "2012901"]
[WhiteElo "2295"]
[BlackElo "2109"]
[Result "1/2-1/2"]
[Round "02"]
[TimeControl "180+2"]
[Date "2022.12.27"]
[WhiteClock "0:00:10"]
[BlackClock "0:00:10"]

1. e4 {[%clk 0:03:00]}  d5 {[%clk 0:02:59]} 2. exd5 {[%clk 0:03:00]}  Qxd5 {[%clk 0:02:59]} 3. Nc3 {[%clk 0:03:01]}  Qd6 {[%clk 0:03:00]} 4. d4 {[%clk 0:02:59]}  Nf6 {[%clk 0:03:01]} 5. Bc4 {[%clk 0:02:51]}  c6 {[%clk 0:03:00]} 6. Nge2 {[%clk 0:02:52]}  Bf5 {[%clk 0:02:56]} 7. Ng3 {[%clk 0:02:50]}  Bg6 {[%clk 0:02:53]} 8. O-O {[%clk 0:02:45]}  e6 {[%clk 0:02:53]} 9. Re1 {[%clk 0:02:43]}  Be7 {[%clk 0:02:53]} 10. a4 {[%clk 0:02:36]}  a5 {[%clk 0:02:53]} 11. b3 {[%clk 0:02:36]}  O-O {[%clk 0:02:53]} 12. Ba3 {[%clk 0:02:33]}  Qd8 {[%clk 0:02:52]} 13. Bxe7 {[%clk 0:02:34]}  Qxe7 {[%clk 0:02:52]} 14. f4 {[%clk 0:02:21]}  Qb4 {[%clk 0:02:44]} 15. Qd2 {[%clk 0:02:12]}  Nbd7 {[%clk 0:02:22]} 16. Rad1 {[%clk 0:02:03]}  Nb6 {[%clk 0:02:20]} 17. Bf1 {[%clk 0:01:49]}  Nbd5 {[%clk 0:02:10]} 18. Nxd5 {[%clk 0:01:47]}  cxd5 {[%clk 0:02:08]} 19. Qxb4 {[%clk 0:01:46]}  axb4 {[%clk 0:02:08]} 20. f5 {[%clk 0:01:41]}  exf5 {[%clk 0:02:05]} 21. Re7 {[%clk 0:01:38]}  f4 {[%clk 0:01:57]} 22. Ne2 {[%clk 0:01:38]}  Bxc2 {[%clk 0:01:57]} 23. Rc1 {[%clk 0:01:37]}  Bxb3 {[%clk 0:01:54]} 24. Rb1 {[%clk 0:01:31]}  Bxa4 {[%clk 0:01:52]} 25. Rxb4 {[%clk 0:01:31]}  Bc6 {[%clk 0:01:52]} 26. Nxf4 {[%clk 0:01:30]}  Rfe8 {[%clk 0:01:43]} 27. Rxe8+ {[%clk 0:01:23]}  Rxe8 {[%clk 0:01:35]} 28. Nd3 {[%clk 0:01:24]}  Kf8 {[%clk 0:01:11]} 29. Ne5 {[%clk 0:01:23]}  Ra8 {[%clk 0:00:56]} 30. Bd3 {[%clk 0:01:03]}  Ne4 {[%clk 0:00:53]} 31. h3 {[%clk 0:00:53]}  Ra1+ {[%clk 0:00:46]} 32. Kh2 {[%clk 0:00:51]}  Rc1 {[%clk 0:00:31]} 33. Rb2 {[%clk 0:00:44]}  f6 {[%clk 0:00:25]} 34. Nf3 {[%clk 0:00:41]}  Ke7 {[%clk 0:00:20]} 35. Re2 {[%clk 0:00:39]}  Kd6 {[%clk 0:00:18]} 36. Ra2 {[%clk 0:00:36]}  g5 {[%clk 0:00:10]} 37. Ra8 {[%clk 0:00:32]}  h5 {[%clk 0:00:11]} 38. Rd8+ {[%clk 0:00:31]}  Ke7 {[%clk 0:00:10]} 39. Rh8 {[%clk 0:00:30]}  g4 {[%clk 0:00:11]} 40. Rh7+ {[%clk 0:00:29]}  Ke6 {[%clk 0:00:09]} 41. hxg4 {[%clk 0:00:21]}  hxg4 {[%clk 0:00:10]} 42. Bxe4 {[%clk 0:00:18]}  dxe4 {[%clk 0:00:10]} 43. d5+ {[%clk 0:00:11]}  Bxd5 {[%clk 0:00:10]} 44. Nd4+ {[%clk 0:00:12]}  Ke5 {[%clk 0:00:10]} 45. Ne2 {[%clk 0:00:12]}  Rc2 {[%clk 0:00:09]} 46. Ng3 {[%clk 0:00:10]}  f5 {[%clk 0:00:09]} 47. Re7+ {[%clk 0:00:10]}  Be6 {[%clk 0:00:09]} 48. Rxb7 {[%clk 0:00:09]}  f4 {[%clk 0:00:09]} 49. Rb5+ {[%clk 0:00:10]}  Kf6 {[%clk 0:00:10]} 50. Nxe4+ {[%clk 0:00:10]}  Ke7 {[%clk 0:00:08]} 51. Rg5 {[%clk 0:00:10]}  g3+ {[%clk 0:00:08]} 52. Nxg3 {[%clk 0:00:09]}  fxg3+ {[%clk 0:00:09]} 53. Rxg3 {[%clk 0:00:10]}  Rc5 {[%clk 0:00:08]} 54. Rg7+ {[%clk 0:00:09]}  Kf6 {[%clk 0:00:09]} 55. Rg3 {[%clk 0:00:09]}  Rh5+ {[%clk 0:00:09]} 56. Kg1 {[%clk 0:00:10]}  Rg5 {[%clk 0:00:09]} 57. Rxg5 {[%clk 0:00:09]}  Kxg5 {[%clk 0:00:09]} 58. g4 {[%clk 0:00:10]}  Bxg4 {[%clk 0:00:10]} 1/2-1/2


[Site "https://www.chess.com"]